Cogmind - Beta 14 @@@ ROGUE MODE // 2025.03.09 @ 09:43:43 Player: canerib Result: Self-destructed Performance ------------- Evolutions (1) 500 Regions Visited (2) 400 Robots Destroyed (42) 210 Value Destroyed (1031) 1031 Prototype IDs (1) 20 Alien Tech Used (0) 0 Bonus (0) 0 TOTAL SCORE: 2161 Bonus ------- None Cogmind --------- Core Integrity 188/400 Matter 271/300 Energy 250/250 System Corruption 0% Temperature Hot (264) Movement Walking (190) Ox1 Location -9/Materials Parts ------- > --- POWER (1) -------- Ion Engine > --- PROPULSION (3) --- Aluminum Leg Aluminum Leg > --- UTILITY (3) ------ Large Storage Unit Visual Processing Unit Improved Terrain Scanner > --- WEAPON (2) ------- Particle Gun > --- INVENTORY (15) --- Ion Engine Ion Engine Aluminum Leg VTOL Module Small Storage Unit Small Storage Unit High-capacity Matter Pod (110) Sensor Array Improved Terrain Scanner Field Recycling Unit (0) Peak State ------------ > --- POWER ------------ Ion Engine > --- PROPULSION ------- Aluminum Leg Aluminum Leg Aluminum Leg > --- UTILITY ---------- Large Storage Unit Visual Processing Unit Improved Terrain Scanner > --- WEAPON ----------- Particle Gun Improved Assault Rifle > --- INVENTORY -------- Aluminum Leg Aluminum Leg Small Storage Unit Small Storage Unit High-capacity Matter Pod Improved Terrain Scanner Field Recycling Unit [Rating: 16] Favorites ----------- Power Ion Engine Engine Ion Engine Power Core Light Nuclear Core Propulsion Aluminum Leg Leg Aluminum Leg Utility Improved Terrain Scanner Device Improved Terrain Scanner Storage Small Storage Unit Processor Visual Processing Unit Weapon Assault Rifle Energy Gun Particle Gun Ballistic Gun Assault Rifle Build | -11 -10 -9 ------- Run | Yrd Mat Mat Slots Evolved 2 | . . 2 Power . | . . . Propulsion 1 | . . 1 Utility 1 | . . 1 Weapon . | . . . Parts Attached 40 | 9 18 13 Power 9 | 2 4 3 Engine 8 | 2 3 3 Core 1 | . 1 . Reactor . | . . . Propulsion 19 | 2 11 6 Treads . | . . . Leg 19 | 2 11 6 Wheel . | . . . Hover . | . . . Flight . | . . . Utility 5 | 3 . 2 Device 2 | 2 . . Storage 2 | 1 . 1 Processor 1 | . . 1 Hackware . | . . . Protection . | . . . Artifact . | . . . Weapon 7 | 2 3 2 Energy Gun 1 | . . 1 Energy Cannon . | . . . Ballistic Gun 6 | 2 3 1 Ballistic Cannon . | . . . Launcher . | . . . Special Weapon . | . . . Impact Weapon . | . . . Slashing Weapon . | . . . Piercing Weapon . | . . . Special Melee Weapon . | . . . Unidentified Prototypes 1 | . . 1 Parts Lost 10 | . 3 7 Power 2 | . 1 1 Propulsion 4 | . . 4 Utility . | . . . Weapon 4 | . 2 2 Highest Loss Streak 2 | . 1 2 To Critical Strikes . | . . . Average Slot Usage (%) 97 | . 97 96 Engine 11 | . 12 10 Leg 30 | . 28 32 Device 12 | . 14 11 Storage 12 | . 14 11 Processor 5 | . . 11 Energy Gun 3 | . . 7 Ballistic Gun 19 | . 26 12 Peak Build Rating 16 | 9 12 16 Average Rating 11 | 6 9 14 On Entrance 6 | . 9 10 Naked Turns . | . . . Heaviest Build 32 | 15 15 32 Greatest Support 30 | 20 20 30 Greatest Overweight (x) 3 | 3 . 1 Average Overweight (x) . | . . . Largest Inventory Capacity 15 | 8 8 15 Average Capacity 10 | 7 8 13 Most Carried 10 | 4 8 10 Average Carried 6 | 1 6 7 Final Capacity 15 | 8 8 15 Final Carried 10 | 4 8 10 Class Distribution -------------------- 74% | Scavenger-Mutant 25% | Mutant Dominant Class ---------------- Scavenger-Mutant | -10/Materials Scavenger-Mutant | -9/Materials Resources | -11 -10 -9 ----------- Run | Yrd Mat Mat Matter Collected 1353 | 277 606 470 Remotely . | . . . Salvage Created 1284 | 110 636 538 Parts 93 | 5 52 36 Haulers Intercepted . | . . . Recyclers Shooed 1 | . 1 . Parts Field Recycled . | . . . Retrieved Matter . | . . . Parts Self-Destructed . | . . . Prevented . | . . . Kills | -11 -10 -9 ------- Run | Yrd Mat Mat Combat Hostiles Destroyed 35 | . 19 16 Guns 35 | . 19 16 Classes Destroyed 9 | 2 4 3 Worker 1 | . 1 . Builder 1 | . . 1 Tunneler 2 | 2 . . Recycler 1 | 1 . . Watcher 2 | . 1 1 Swarmer 11 | . 6 5 Grunt 22 | . 13 9 Duelist 1 | . . 1 Sentry 1 | . . 1 Best Kill Streak 4 | 3 4 4 Combat Bots Only 4 | . 4 4 Max Kills in Single Turn 1 | 1 1 1 Gunslinging . | . . . Exploded . | . . . Melee . | . . . Uniques/NPCs Destroyed . | . . . Combat | -11 -10 -9 -------- Run | Yrd Mat Mat Hostile Shots Fired 240 | . 120 120 Missed 64 | . 33 31 Damage Taken 2048 | . 908 1140 Core 355 | . 143 212 Absorbed by Shields . | . . . Regen/Repaired (Parts) 81 | . 81 . Core Remaining (%) 71 | 100 42 . Volleys Fired 140 | 7 65 68 Largest 2 | 2 2 2 Hottest 88 | 40 40 88 Shots Fired 259 | 14 129 116 Gun 259 | 14 129 116 Cannon . | . . . Launcher . | . . . Special . | . . . Kinetic 233 | 14 129 90 Thermal 26 | . . 26 Explosive . | . . . Electromagnetic . | . . . Robot Hit Streak 10 | 6 10 10 Robot Miss Streak 6 | 1 6 2 Penetration Max . | . . . Secondary Targets 8 | . 5 3 Max Gunslinging Chain 1 | . 1 1 Shots Hit Robots 167 | 10 78 79 Core Hits 70 | 4 37 29 Critical Kills 1 | . 1 . Critical Parts Destroyed 1 | 1 . . Critical Strikes 3 | 1 1 1 Burn 1 | . . 1 Destroy 2 | 1 1 . Melee Attacks . | . . . Impact . | . . . Slashing . | . . . Piercing . | . . . Sneak Attacks . | . . . Combat Hostiles . | . . . Follow-up Attacks . | . . . Damage Inflicted 2209 | 127 940 1142 Guns 2209 | 127 940 1142 Cannons . | . . . Explosions . | . . . Melee . | . . . Ramming . | . . . Kinetic 1958 | 127 940 891 Thermal 251 | . . 251 Explosive . | . . . Electromagnetic . | . . . Impact . | . . . Slashing . | . . . Piercing . | . . . Highest Corruption 4 | . 4 . Average Corruption 2 | . 2 . Corruption Purged . | . . . Corruption Blocked . | . . . Effects 16 | . 16 . Message Errors 3 | . 3 . Matter Fused 3 | . 3 . Heat Flow Errors 3 | . 3 . Energy Discharges 3 | . 3 . Data Loss (minor) 1 | . 1 . Data Loss (major) 1 | . 1 . Misfires 2 | . 2 . Overload Shots . | . . . Overflow Damage . | . . . Projectiles . | . . . Explosions . | . . . Melee . | . . . Knockbacks . | . . . Impact . | . . . Kinetic . | . . . Secondary . | . . . Self-Inflicted Damage . | . . . Shots . | . . . Rammed . | . . . Targets Rammed . | . . . Kicked . | . . . Crushed . | . . . Highest Temperature 264 | . 151 264 Average Temperature 67 | . 40 74 Received Heat Transfer 642 | . 402 240 Siege Activations . | . . . Robots Corrupted . | . . . Combat Hostiles . | . . . Parts Fried . | . . . Impact Corruptions . | . . . Robots Melted . | . . . Combat Hostiles . | . . . Parts Melted . | . . . Heat Transferred 666 | . . 666 Parts Sabotaged . | . . . Parts Stolen . | . . . Parts Stripped . | . . . Power Chain Reactions . | . . . Alert | -11 -10 -9 ------- Run | Yrd Mat Mat Peak Influence 340 | 15 340 222 Initial 37 | . 9 37 Average 119 | 3 122 130 Maximum Alert Level 1 | . 1 1 Low Security (%) 84 | 100 83 83 Level 1 15 | . 16 16 Level 2 . | . . . Level 3 . | . . . Level 4 . | . . . Level 5 . | . . . High Security . | . . . Max Security . | . . . Squads Dispatched 9 | . 7 2 Investigation 7 | . 5 2 Extermination . | . . . Reinforcement 2 | . 2 . Assault . | . . . Garrison . | . . . Intercept . | . . . Searches Triggered . | . . . Construction Impeded . | . . . Haulers Reinforced . | . . . Active Scanning Responses . | . . . Cargo Convoy Interrupts . | . . . Stealth | -11 -10 -9 --------- Run | Yrd Mat Mat Distress Signals 2 | . 1 1 Communications Jammed . | . . . Distress Signals . | . . . Times Spotted 54 | . 30 24 Peak Tracking Total 6 | . 4 6 Tactical Retreats 1 | . 1 . Traps | -11 -10 -9 ------- Run | Yrd Mat Mat Traps Triggered 3 | . 3 . Indirectly . | . . . Trap Hack Attempts . | . . . Triggered . | . . . Disarmed . | . . . Reprogrammed . | . . . Reused . | . . . Traps Extracted . | . . . Installed . | . . . Triggered . | . . . Machines | -11 -10 -9 ---------- Run | Yrd Mat Mat Machines Disabled 1 | . . 1 Max in Single Turn 1 | . . 1 Machines Repaired . | . . . Machines Dismantled . | . . . Machines Sabotaged . | . . . Overloaded Fab Kills . | . . . Hacking | -11 -10 -9 --------- Run | Yrd Mat Mat Machines Accessed 11 | . 6 5 Terminals 10 | . 5 5 Fabricators . | . . . Repair Stations 1 | . 1 . Recycling Units . | . . . Scanalyzers . | . . . Garrison Access . | . . . Total Hacks 39 | . 28 11 Successful 13 | . 11 2 Failed 26 | . 17 9 Catastrophic 7 | . 4 3 Database Lockouts . | . . . Manual 24 | . 16 8 Terminals 31 | . 20 11 Fabricators . | . . . Repair Stations 8 | . 8 . Recycling Units . | . . . Scanalyzers . | . . . Garrison Access . | . . . Terminal Hacks 3 | . 2 1 Branch Access Points 1 | . . 1 Alert Level 1 | . 1 . Unreport Threat 1 | . 1 . Fabricator Hacks . | . . . Repair Station Hacks 6 | . 6 . Scan Component 3 | . 3 . Repair 3 | . 3 . Recycling Unit Hacks . | . . . Scanalyzer . | . . . Garrison Access Hacks . | . . . Unauthorized Hacks 4 | . 3 1 Terminals 4 | . 3 1 Assimilate 1 | . 1 . Botnet 3 | . 2 1 Fabricators . | . . . Repair Stations . | . . . Recycling Units . | . . . Scanalyzers . | . . . Garrison Access . | . . . Data Cores Recovered . | . . . Used . | . . . Hacking Detections 11 | . 6 5 Full Trace Events 7 | . 5 2 Feedback Events 1 | . 1 . Corruption 1 | . 1 . Feedback Blocked . | . . . Robot Schematics Acquired . | . . . Robots Built . | . . . Authchips . | . . . Time . | . . . Total Robot Build Rating . | . . . Part Schematics Acquired . | . . . Parts Built . | . . . Authchips . | . . . Time . | . . . Total Part Build Rating . | . . . Parts Repaired 3 | . 3 . Time 78 | . 78 . Parts Recycled . | . . . Recycled Matter . | . . . Retrieved Matter . | . . . Retrieved Components . | . . . Parts Scanalyzed . | . . . Part Schematics Acquired . | . . . Parts Damaged . | . . . Bothacking | -11 -10 -9 ------------ Run | Yrd Mat Mat Used RIF Installer . | . . . Robots Hacked . | . . . Non-combat . | . . . Combat . | . . . Robot Hacks Applied . | . . . Relay Couplers Released . | . . . Fabnet Peak Effective % . | . . . Robots Rewired . | . . . Allies Hacked . | . . . Hacks Repelled . | . . . Allies | -11 -10 -9 -------- Run | Yrd Mat Mat Total Allies . | . . . Largest Group . | . . . Highest-Rated Group . | . . . Highest-Rated Ally . | . . . Total Orders . | . . . Ally Attacks . | . . . Total Damage . | . . . Kills . | . . . Allies Corrupted . | . . . Allies Melted . | . . . Intel | -11 -10 -9 ------- Run | Yrd Mat Mat Robot Analysis Total . | . . . Derelict Logs Recovered . | . . . Drone Launches . | . . . Drone Recoveries . | . . . Exploration | -11 -10 -9 ------------- Run | Yrd Mat Mat Turns Passed 1849 | 99 912 838 Spaces Moved 902 | 48 491 363 Core 8 | 8 . . Treads . | . . . Legs 894 | 40 491 363 Wheels . | . . . Hover . | . . . Flight . | . . . Fastest Speed 50 | 50 120 120 Average Speed 138 | 131 120 164 Slowest Speed 200 | 200 120 190 Overloaded Moves . | . . . Propulsion Burnouts . | . . . Robots Hopped . | . . . Cave-ins Triggered . | . . . Exploration Rate (%) 36 | 3 70 35 Regions Visited 2 Branch Regions . Pre-discovered Areas . | . . . Known Exits Taken . | . . . Unknown Exits Taken 2 | 1 1 . Scrap Searched . | . . . Spaces Dug . | . . . Terrain Destroyed . | . . . Melee . | . . . Projectile . | . . . AOE . | . . . Terrain Rammed . | . . . Walls Destroyed . | . . . Machines Disabled . | . . . Actions | -11 -10 -9 --------- Run | Yrd Mat Mat Total 1240 | 65 688 487 Wait 133 | . 99 34 Move 900 | 47 490 363 Hop . | . . . Pick Up 13 | 2 5 6 Fast Attach 12 | 7 3 2 Attach 8 | . 2 6 Detach . | . . . Swap 20 | 2 13 5 Drop 14 | . 11 3 Fire 140 | 7 65 68 Melee . | . . . Ram . | . . . Kick . | . . . Crush . | . . . Escape Stasis . | . . . Rewire . | . . . Trap . | . . . Miscellaneous . | . . . Route ------- -11/Scrapyard -10/Materials (discovered 4 exits: *Mat x2 / [*Min x2]) -9/Materials (discovered 4 exits: [*Mat] / Min / Sto x2) History --------- Turn | Location | Event 31 | -11/Scrapyard | Discovered new exit (range 13) 100 | -11/Scrapyard | Entered Materials 236 | -10/Materials | Discovered new exit (range 8) 316 | -10/Materials | Build established: Mutant 516 | -10/Materials | Discovered new exit (range 5) 629 | -10/Materials | Discovered new exit (range 15) 743 | -10/Materials | Build established: Scavenger-Mutant 765 | -10/Materials | Core integrity fell below 50% 887 | -10/Materials | Discovered new exit (range 10) 920 | -10/Materials | Repaired Ion Engine 947 | -10/Materials | Repaired Aluminum Leg 975 | -10/Materials | Repaired Aluminum Leg 1012 | -10/Materials | Entered another Materials area 1012 | -9/Materials | Evolved 2 slots: Propulsion x1, Utility x1 1286 | -9/Materials | Discovered new exit (range 18) 1442 | -9/Materials | Identified exit to Mines 1442 | -9/Materials | Identified exit to Storage 1848 | -9/Materials | Core integrity fell below 50% 1850 | -9/Materials | Self-destructed Last Messages --------------- 01803_ K-01 Serf collects debris. 01803_ R-06 Scavenger collects Lgt. Ion Engine. 01807_ K-01 Serf collects debris. 01810_ T-07 Excavator is excavating. 01811_ S-10 Pest destroyed. 01811_ Switching to secondary target: S-10 Pest. 01814_ T-07 Excavator is excavating. 01814_ W-16 Scout sends out distress signal. 01818_ T-07 Excavator is excavating. 01826_ S-10 Pest destroyed. 01826_ Switching to secondary target: G-34 Mercenary. 01829_ U-05 Engineer lays Concrete. 01832_ G-34 Mercenary destroyed. 01840_ R-06 Scavenger collects Heat Sink. 01844_ R-06 Scavenger collects Aluminum Leg. 01847_ K-01 Serf collects debris. 01848_ R-06 Scavenger collects Ion Engine. 01850_ Imp. Assault Rifle destroyed. 01850_ Aluminum Leg destroyed. Map ----- +----------------------------------------------------+ | # """"" "# ## # ##?????????????? | | #+### """"" T######### # #???? ?????????? | | # """ "## # # #??????????????? | | " # ## # # #??????????????? | | "" ########### # ########## ?"? "????????? | | "" #?#?#???#?# """ + #?????#?#????"??????????? | | "" #??###???## """ # ##?#?????? ??? ? ???????? | | " #??????#??# """ # =%#???????????????????????? | | "" #?????????######## *#???????#???????????????? | | "" #???#??#?#??#???## #############???????????? | | "" #?##?#?#?#???#?#?# # + ??????????? | | " #??#??#????????### # """"" ##??????????? | | #??############### # ""T"" #???????????? | | #??# # #???????????? | | #??# = / #???????????? | | #####??# # #???????????? | | ??????## ########### # #???????????? | | ???????# #??######## #############???????????? | | #####?## #??# # ###?##??????????????????? | | #?#?# ##?# """ # #??##????#??????????????? | | #???# ##?# """ # #??????#???? ???????????? | | ! #???# #### """ # #?##?#??#???????????????? | | ##??# + # #???##??????????????????? | | = #?#?# # # #?#????#??? ????????????? | | ##### ####+### ###########????#????????? | | ## @l =%[% ??????? | | + asw u[= k ??????? | | ## g % r t u ??????? | | ## a # ##### #+######u#????????? | | ## # #???? #?? ????#?????????? | | ## #! !##??# #?????????????????? | | ## ##! !!##??#??? #?????????????????? | | +#### #######????????#?????????????????? | | ##???????#???????????????????????? | | [#????#?????#? ???????????????????? | | #?????#???#??????????????????????? | | #### """ """ #?#?#?#??????????#???????????????? | | ???# """ """ #??#?????##??????????????????????? | | ???# """ ""? #????????????????????????????????? | | ???# ? #????????????????????????????????? | | ???# ? ?? ?????#???????????????????????????? | | ???# ?? ? ???????????????????????????????????? | | ???? ??? ??????????????????????????????????????? | | ?????????? ??????????????????????????????????????? | | ?????#?????#?????????????????????????????????????? | | ???????????????????#?????????????????????????????? | | ?????????????????????????????????????????????????? | | ?????????????????????????????????????????????????? | | ?????????????????????????????????????????????????? | | >????????????????????????????????????????????????? | +----------------------------------------------------+ Best States ------------- Heat Dissipation 28 Energy Generation 14 Energy Capacity 250 Matter Stores 300 Matter Capacity 300 Sight Range 18 Terrain Scan Range 16 Terrain Scan Density 10 Evasion (%) 55 Item Schematics ----------------- None Robot Schematics ------------------ None Fabricated ------------ Nothing Alien Tech Used ----------------- None Achievements -------------- None Challenges ------------ None Game ------ Seed ThermoelectricCoreLattice Manual? 0 Play Time 00:20:39 Cumulative 54.3 hours Start 2025.03.09 @ 09:23:44 End 2025.03.09 @ 09:43:43 Sessions 1 Manual Loads 0 Difficulty Rogue Special Mode None Game No. 74 Rogue 74 Adventurer 0 Explorer 0 Win Type - Total 1 Types 1/0/0/0/0/0/0/0/0 Lore% 24 Gallery% 40 Achievement% 35 Wizard Run 0 Options --------- Layout 1 ASCII 1 Keyboard 0 Movement Numpad Keybinds 0 Fullscreen 1 Font 24/Smallcaps Map View 50x35 Zoom Use 0% Tactical HUD 1 Map Filters NONE Filters NONE Steam 1 RUN: 8ddcd014-8af4-4329-a075-f0bd13f97717